{"text_format":"1","workbook":"xlsx","n_sheets":16,"sheets":["UiA Spørsmål Ane","UiA Spørsmål","UiA Informasjon","UiA_Gjenstår","Klassifiseringsskjema","Budsjettmodell for EVU","INFO KDs-finansieringskategori","Basis","IK Ansatt","IK Student","Input Grunndata","Beregnet IK tabell","Input UH finansieringssats","Input A-tabellen","Input C-tabellen","INFO KD's finansieringskategori"],"not_rendered":{"charts":0,"images":1,"macros":1,"external_links":0,"defined_names":26,"comments":3,"pivot_tables":0},"unopened":[],"bounds":{"document_bytes":16777216,"sheet_cells":100000,"rows_first":2000,"rows_last":500,"rows_between":2000,"halvings":0,"cell_chars":16384,"cell_head_chars":4096},"cells_cut":0,"cells_raw":0,"read":"whole","date_system":"1900"}

{"sheet":"UiA Spørsmål Ane","index":0,"n_rows":46,"n_cols":5,"rows_kept":46,"cut":false,"hidden":true,"merged":[]}
[]
[null,"Spørsmål","Kommentarer og svar","Videre diskusjon","Utført?"]
[null,"Meruttelling i budsjettmodellen, hva sier denne oss?"]
[]
[null,"Sats for utleie på 1100, er dette noe fra leiestedsmalen?","Ja, det er antakeligvis fremkommet ved å legge inn et eksempel","Må finne ut om leiestedsmalen er aktuell å benytte"]
[null,null,"Auditorium med 32 plasser","Den tar utgp i så lave priser som mulig, jfr. ikke økonomisk aktivitet"]
[null,null,"Beløp hentet fra arket \"Fakturarekvisisjon\"","Ta et møte på dette: Geir Sune, Harry og Kristian?"]
[]
[null,"Utd. Årsverk (fordeling) er dette heltidsekvivalent (ingrid) og ikke ansatt?"]
[]
[null,"Skal definere ant. Årsverk som jobber med EVU, og legge det på utdanningsårsverk (nevner). Men blir dette egentlig korrekt?"]
[]
[]
[null,"Endre:"]
[]
[null,"NB! Presiser at det er ansatte det gjelder med utdanningsårsverk."]
[]
[]
[null,"Elementer fra møtet med Ingrid:"]
[]
[null,"IK-student:"]
[null,"Burde egentlig bare ta bort hele kolonnen for stp. Og kun ha kostnadesdriverne KURS og DELTAKERE"]
[null,"Studieadministrasjonen = trekk ut kostnadene ved internasjonal avdeling"]
[null,"Universitetsbiblioteket = burde kunne trekke ut mesteparten?"]
[]
[null,"Fordelings% mellom de 3 kostnadsdriverne:"]
[null,"Fakultetsadministrasjonen: her burde det være 50/50 mellom kurs og deltaker for å få frem fokus på kostnader ved kurs."]
[null,"Øvrig felles: 100% på kurs"]
[null,"Studieadministrasjon: her burde det være 50/50 kurs og deltaker"]
[null,"IT: mer over på kurs pga fronter og system"]
[]
[null,"Strategi og besluutning om kurs skal gjennomføres:"]
[null,"Hun ønsker et større fokus på strategisk tenkning når det kommer til beslutning av om et kurs skal gjennomføres eller ikke. "]
[null,"EVU = et supplement (non stop) til hovedvirksomheten. Det må gjenspeiles i strategisk tenkning."]
[null,"Nå er det slik at det må være break even for at et kurs skal gjennomføres. Mangler det en student, avlyses det, og dette er ikke godt for noe. (Omdømme, studenter, m.m.)"]
[null,"Dette kunne vært et bidrag som etter hvert ville gitt oss resultat, men fordi man er så firkantede nå, så avlyses det. "]
[null,"Man burde se på det som et bidrag selv om det ikke gir full dekning av kostnader"]
[null,"hvis man nå har 9 og trenger 10, så avlyses det"]
[null,"Dette burde det opp en strategisk diskusjon på, på ledelsesnivå."]
[null,"Eksempelvis hvis man dekker de mesteparten av direkte kostnader, så la det gå, se bort fra flere av de indirekte kostnadene. "]
[null,"Dette burde være ok hvis det gir et positivt bidrag, og kan gi resultater senere. Hun mener mye tapes av at man ser firkantet på dette. "]
[null,"Vi må tenke mer DB. Beslutningspkt. Bør være lenger oppe i malen. Med det menes at så lenge visse direkte kostnader er dekket, bør det være ok. "]
[]
[null,"Annet:"]
[null,"Leiested: det burde være ulike priser for dag/kveld (og rimligere for EVU om de benytter det på kveld). Hun mener kostnad bør bæres av kjernen, og EVU få det billigere. Dette fordi de da benytter ledig kapasitet. Men hva med strøm? Ventilasjon? Låsing? Vakter? M.m.?"]
[null,"Fast kostnad per kurs: dette er bra, og vil få en vridning mot større kurs, evt. en sammenslåing av kurs."]

{"sheet":"UiA Spørsmål","index":1,"n_rows":51,"n_cols":5,"rows_kept":51,"cut":false,"hidden":true,"merged":[]}
["Spørsmål","Svar"]
["Hvilke kostnader innebærer nettstudie?","Kostbar utvikling, spesielt for 1 nettstudie.","Forslår at vi tar ut dette.","Hør med EVU","Kostnad for utvikling må inn i timeberegning."]
["Hva er \"intern lønnskostnad, faglig\"?","Brukes kontoer, generelt? - lag tabell"]
["Leie av lokaler internt. Hvorfor? Dobbeltføring - kommer inn i kapital og drift på både ansatt og student","Spør Randi Hasle. Spesielle forhold rundt fakturering av intern leie.",null,"Kan løses ved å sette husleie til 100%"]
["Hva med om kurset \"kun\" har eksterne forelesere - husleie?","Ok. Dette dekkes. Ingen ekstra husleie for eksterne."]
["Kompetansevurdering og opptaksbehandling - sats og prosent?","Ok. Skjuler dette fra mal, legges inn i "]
[]
["Hvordan gjøres det med foreleser intern/ekstern hvis FLERE enn 1/2?","Hør med EVU om nødvendig"]
["Ekstern foreleser og faglig utvikling - når brukes dette? (motor - gammel)","tar vekk"]
["Hvis \"prosenter\" - hvem skal være med å bestemme dette?","Tar som det kommer.."]
["Fordeling i basis, og prosenter i beregning av IK","208040605050100. nei"]
["IK student - hvordan gjør vi dette. Veldig høye kostnader om man ikke ser på marginaler.","vente til fordeling i basis er ferdig."]
["Stp vs ikke stp","fordeling må gjøres. Ellers ok."]
["Husleie og drift settes til null pga konkurransemessige hensyn. ???","Ok. Fjernundervisning. KUN hvis oppdrag - ta betalt for lokaler."]
["Fakultetsadm i basis - hvilke tall skal brukes her?"]
["Er det ok å ta bort fondsavsetninger? Både på fellesadm og fakultetsadm BASIS","Vi tar med, men kun på fellesadm. Avhengig av avskrivninger!!!"]
["Er det ok å ta bort satsningstiltak fakultet? BASIS","Ja. Disse inkluderes i regnskapet. "]
["Hva slags type årsverk skal brukes i beregning?","Ansatt/deltid/prosentstilling:A, timelærer: C"]
["Hvis C-tabell brukes, så er et årsverk 1950 timer.","bruker 1875. Pensjonsutgift for både i og e"]
["Sats for prosjektadministrasjon bør være likt beregnet som for forelesere etc?","ok"]
["Flytte opp prosjektadm til under undervisning? Beregne AGA, FP og Pensjon for seg?"]
["Hvorfor skal man kunne velge lønnstabell ? (A/C)","ok"]
["Er det et poeng at de skal gi forskjellige svar???","ok"]
["Bedre å holde seg til en tabell?","ok"]
["C-tabell tar ikke hensyn til bev hd og sykefravær. Dette blir lite korrekt?","ok"]
["C-tabell til Eksterne og A-tabell til Interne.","ok"]
["Intern foreleser","timelønn + 10%"]
["ekstern foreleser","timelønn"]
["Eksterne - rad 64/65 ???? Kan disse erstatte E/I, eller motsatt?","ha begge"]
["Kostnadsbærere - ansatte. Hvorfor 599? BASIS"]
["Kan vi ta vekk valg av lønnstabell? (Automatisk A hvis intern. C hvis ekstern og timer under 20% av 1875.???)"]
["Hva slags IK skal beregnes på eksterne forelesere? (kan vi utelukke dette?)"]
["Det skal ikke AGA på ENK. Oppgplikt","ok"]
["Alle blir kompetansevurdert"]
[]
["08.02.2016 - møte med Harry, Daniel og Ane"]
["IK studenter - denne satsen er høy. Skal IK være proporsjonal med stp?"]
["IK for kurs uten stp","Kan vi legge inn \"liksomstp\"? Har veldig mye å si for IK student."]
["IK for eksterne. Både vit og admtek"]
["Ift. økonomiavd og eksterne. Hvor mye av arbeidstid på lønn går med til eksterne? \"Systemet løser de fast ansatte\"",null,"Ca 60% eksterne, 40% interne","Hvordan gjør vi dette?"]
["\"5%en\" gjelder vel i hovedsak for prosjekter om etablering av særskilt forskningsmessig infrastruktur?"]
["Jeg finner ikke noe om \"eksterne\" i dokumentet?"]
[]
[]
["Høre med Ingvild Mulen, Marianne Ørn ift studieadm."]
["Gjøre noe med årsverkene. Kun ha en sats!!"]
["Vise hvilke midler som går tilbake til fakultet."]
[]
[]
[]
["Møte ….."]

{"sheet":"UiA Informasjon","index":2,"n_rows":2,"n_cols":13,"rows_kept":2,"cut":false,"hidden":true,"merged":[]}
[]
[null,null,null,null,null,null,null,null,null,null,null,null,"Denne må ferdigstilles"]

{"sheet":"UiA_Gjenstår","index":3,"n_rows":29,"n_cols":12,"rows_kept":29,"cut":false,"hidden":true,"merged":[]}
["Dette nå gjøres fremover:"]
["Legge inn EVU-punkt med indirekte kostnader i \"Budsjettutregning og kostnadsberegning på prosjekter\"",null,null,null,null,null,null,null,null,"Fakultet","Fått data?","Ressurser til EVU (årsverk)"]
["Få svar fra alle fakultet ang. direkte stillinger som går til studiesiden, differensiert på ordinære og EVU-studenter.",null,null,null,null,null,null,null,null,"HUMPED","ok",1.8]
["Avklaring ift. eksternt personell og indirekte kostnader.",null,null,null,null,null,null,null,null,"HH"]
["Nettstudie - hvordan belastes dette IT-avdelingen?",null,null,null,null,null,null,null,null,"SAMVIT"]
[null,"Er det ting vi har glemt? Ting vi må legge til?",null,null,null,null,null,null,null,"HI"]
[null,null,null,null,null,null,null,null,null,"TEKREAL"]
[null,null,null,null,null,null,null,null,null,"KUNST"]
[null,null,null,null,null,null,null,null,null,"LU ?"]
["Implementering av mal",null,null,null,null,null,null,null,null,"Sum",null,{"$f":"SUM(L3:L9)","v":1.8}]
[]
[]
[]
["Uttrekk fra fakultetsadministrasjon:"]
[null,"HUMPED",null,null,null,null,null,null,"Fakultetsadministrasjonen"]
[null,null,null,null,null,null,null,null,"Fakultet:"]
[]
[null,null,null,null,null,null,null,null,"Navn","Stillingsprosent","Herav ordinære studier","Herav EVU-studier"]
[null,null,null,null,null,null,null,null,"Ane Fiskebekk",100,1]
[null,null,null,null,null,null,null,null,"Daniel Johansson",100,0.7,0.3]
[]
[]
[]
[]
[]
[]
[]
["Vi kan her trekke fra 5,8 årsverk fra fakultet, i IK student."]
["Legger på 1,8 på utdanningsårsverk, 345,1+1,8",null,null,null,null,null,null,null,"Sum stillinger",{"$f":"SUM(J19:J28)/100","v":2},{"$f":"SUM(K19:K28)","v":1.7},{"$f":"SUM(L19:L28)","v":0.3}]

{"sheet":"Klassifiseringsskjema","index":4,"n_rows":48,"n_cols":5,"rows_kept":48,"cut":false,"hidden":false,"merged":[[26,3,31,3],[26,4,31,4],[35,0,39,4],[15,3,20,3],[11,3,13,3],[11,4,13,4],[15,4,20,4],[23,3,24,3],[23,4,24,4]]}
["Klassifiseringsskjema for etter- og videreutdanning (EVU)"]
[]
[null,"Alle EVU-kurs må klassifiseres fordi dette har betydning for hvordan kurset skal regnskapsføres."]
[null,"Nedenfor angis 1)  ett av fire alternativer, samt 2) en vurdering av EVU-type"]
[]
["Ordforklaringer:"]
[null,"BFV","Bevilgningsfinansiert virksomhet (midler fra statsbudsjettet)"]
[null,"BOA","Bidrags- og oppdragsfinansiert aktivitet"]
[]
["1  EVU-tilbud, kryss av ved ett av 4 alternativer",null,null,"Klassifisering","MVA"]
[]
[null,"med","kursavgift","Salg (BFV)","Forutsatt undervisning; utenfor MVA-loven"]
[null,null,"uten annen ekstern finansiering"]
[null,null,"eventuelt delfinansiering fra egen institusjon (dokumentasjon må foreligge)*"]
[]
[null,"med","kursavgift","Delt, både bidrag BOA (bidrag/tilskudd) og salg BFV (kursavgift)","Forutsatt undervisning; utenfor MVA-loven"]
[null,null,"og bidrag/tilskudd uten krav om motytelse fra ekstern bidragsyter "]
[null,null,"det foreligger tilskuddsbrev fra ekstern kilde "]
[null,null,"det foreligger dokumentert faglig interesse som gjelder bidraget/tilskuddet"]
[null,null,"eventuelt delfinansiering fra egen institusjon (dokumentasjon må foreligge)*"]
[null,null,"kurset er åpent for allmenheten"]
[]
[]
[null,"uten","kursavgift","BFV","Ikke aktuelt (ingen ekstern inntekt)"]
[null,null,"ingen ekstern finansiering"]
[]
[null,"uten","kursavgift","Oppdrag BOA","Forutsatt undervisning; utenfor MVA-loven"]
[null,null,"finansiert i sin helhet av ekstern oppdragsgiver"]
[null,null,"kontrakt/skriftlig avtale med ekstern oppdragsgiver foreligger "]
[null,null,"det foreligger dokumentert faglig interesse "]
[null,null,"kurset er ikke åpent for allmenheten"]
[null,null,"kurset skal ikke delfinansieres av egen institusjon"]
[]
[]
["* Delfinansiering av kurs fra egen institusjon: "]
["Ihht brev av 24.05.2017 fra KD til UHR, så vil man bare i kun svært begrensede tilfeller ha mulighet til å delfinansiere kurs definert som salg med egne midler. Eksempler på tilfeller hvor man kan delfinansiere slike kurs kan være oppstart av helt nye kurs hvor man vil få ekstra kostnader ved å etablere seg i markedet. Vurdering av faglig interesse og gjennomføring av institusjonens samfunnsoppdrag er også forhold som kan gi mulighet til å delfinansiere salgskurs. Det er viktig at disse vurderingene dokumenteres godt. "]
[]
[]
[]
[]
["UHR har opprettet en arbeidsgruppe som bes om å utrede forståelsen av regelverket for finansiering"]
["av etter- og videreutdanniongsvirksomhet i UH-sektoren."]
["2  Valg av type EVU (bidrag, oppdrag eller salg), celle D46"]
[]
[null,null,"Valgboks som påvirker kalkulasjonsmalen =>","Oppdrag"]
[]
[]
[null,"Signert:",null,"den:  "]

{"sheet":"Budsjettmodell for EVU","index":5,"n_rows":103,"n_cols":29,"rows_kept":103,"cut":false,"hidden":false,"merged":[[6,2,6,7],[6,11,6,12],[6,14,6,15],[7,12,7,14],[15,2,15,3],[13,2,13,3],[12,2,12,3],[11,2,11,3],[10,2,10,3],[18,2,18,3],[8,2,8,3],[7,2,7,3],[19,2,19,3],[14,2,14,3],[87,19,87,20],[67,9,67,15],[66,9,66,15],[65,9,65,15],[69,9,69,15],[68,9,68,15],[21,18,21,20],[85,9,85,10],[84,9,84,10],[20,2,20,3],[73,9,73,12],[74,9,74,12],[64,9,64,15],[45,9,45,10],[44,9,44,10],[43,9,43,10]]}
[]
[null,null,null,null,null,null,null,null,null,null,null,null,null,null,null,null,null,null,null,null,null,null,null,null,null,null,{"$f":"R30","v":325000},{"$f":"B30","v":"Totale inntekter"},"hovedtall til INFO"]
[null,null,null,null,null,null,null,null,null,null,null,null,null,null,null,null,null,null,null,null,null,null,null,null,null,null,{"$f":"TotaleKostnader","v":257701.3417946359},{"$f":"B82","v":"Totale kostnader"},"hovedtall til INFO"]
[null,null,null,null,null,null,null,null,null,null,null,null,null,null,null,null,null,null,null,null,null,null,null,null,null,null,{"$f":"R84","v":67298.658205364103},{"$f":"B84","v":"Resultat"},"hovedtall til INFO"]
[]
[]
[null,"Prosjektnavn","Typisk kurs",null,null,null,null,null,null,"Varighet",null,"2018-03-20",null,"til og med","2018-06-30"]
[null,"Prosjektnummer",99999,null,null,null,null,null,null,null,null,"Budsjetteringsdato","2018-01-21"]
[null,"Budsjettenhet (kostnadssted)",9999]
[]
[null,"Antall deltakere",25]
[null,"Studentbetaling pr student (kr)",13000,null,null,{"$f":"IF(C19>0,\"som tilsvarer \"&C12/Antall_stp&\" kr/studiepoeng\",\"\")","v":"som tilsvarer 1300 kr/studiepoeng"}]
[null,"Fikk UiA prosjektet som følge av anbudsrunde?","Nei",null,null,"SKJULES:  UiA - kun til INFO - heretter del av \"Vurdering Prosjekttype\"?",null,null,null,null,null,null,null,null,null,null,null,null,null,null,null,null,null,null,null,null,"Vurderes fjernet"]
[null,"Prosjekttype (se egen arkfane)",{"$f":"Klassifiseringsskjema!D45","v":"Oppdrag"},null,null,"NB!  Valg av prosjekttype SKAL dokumenteres og gjøres i arkfanen \"Klassifiseringsskjema\""]
[null,"Nettstudie?","Nei",null,null,"SKJULES:  UiA - kun til INFO - har ingen effekt ved valgt tilnærming (kun SP), fjerne?",null,null,null,null,null,null,null,null,null,null,null,null,null,null,null,null,null,null,null,null,"Vurderes fjernet"]
[null,"Studiepoenggivende","Ja"]
[]
[null,"Fylles ut for studiepoenggivende kurs:"]
[null,"Antall studiepoeng",10,null,null,null,null,"UH finansieringsprosent  (FS)",null,null,null,{"$f":"IF(AND(C16=\"Nei\",C19>0.0001),\"OBS!  Studiepoenggivende eller ei (celle C16)? Samsvare med Antall studiepoeng (celle c19)\",\"\")","v":""}]
[null,"Studiekategori (UiA spesifikk)","T1",null,null,null,null,"UH finansieringsprosent  (FS)",null,null,null,null,null,null,null,null,null,null,null,null,null,null,null,null,null,null,"UiA-internt, skjule rad"]
[null,"KDs-finansieringskategori (info egen arkfane)","F",null,null,null,null,{"$f":"UiA___finansiert__FS","v":0.20408163265306123},null,{"$f":"IF(AND(C14=\"Oppdrag\",H21>0.0001),\"OBS!  UHs finansiering skal være 0% for oppdragsprosjekter\",\"\")","v":"OBS!  UHs finansiering skal være 0% for oppdragsprosjekter"}]
[null,"Inntekter ",null,null,null,null,null,"Konto",null,null,null,null,null,null,null,null,"Direkte kostnad","Budsjett","Indirekte kostnader"]
[null,{"$f":"IF(C14=\"Oppdrag\",\"Prosjektinntekter avgiftsfrie (oppdragsgiver)\",\"Prosjektinntekter avgiftsfrie (bidragsyter)\")","v":"Prosjektinntekter avgiftsfrie (oppdragsgiver)"}]
[null,"Studieavgifter/kursbetaling",null,null,null,null,null,null,null,null,null,null,null,null,null,null,null,{"$f":"Antall_deltakere*C12","v":325000}]
[null,"Eksamensinntekter"]
[null,"Andre inntekter"]
[null,"Interne tilskudd (egenfinansiering)"]
[null,"Fyll inn"]
[null,"Fyll inn"]
[null,"Totale inntekter",null,null,null,null,null,null,null,null,null,null,null,null,null,null,null,{"$f":"SUM(R23:R29)","v":325000}]
[null,null,null,null,null,null,null,null,null,null,null,null,null,"ÅRSVERK"]
[null,"Undervisning",null,"Vitenskapelig eller Tek/Adm",null,"Ekstern/Intern",null,"Konto",null,"Grupper","Timer","Lønnstabell","Lønnstrinn","Sats","G faktor","Arbeids-timer","Direkte kostnad","Undervisnings-kostnad","SentralAdm","FakAdm","Arbeidsplass"]
[null,"Honorar forelesere",null,"VIT",null,"I",null,null,null,1,45,"A",70,{"$f":"IF(L33=\"C\",(SUMIF('Input C-tabellen'!A:A,$M33,'Input C-tabellen'!B:B)),(SUMIF('Input A-tabellen'!A:A,$M33,'Input A-tabellen'!C:C)/Årsv_Høy))","v":382.98525798525799},3,{"$f":"IF(ISBLANK(K33),0,K33*O33)","v":135},{"$f":"IFERROR(J33*N33*P33,0)","v":51703.009828009832},{"$f":"SUM(Q33,S33:U33)","v":82046.702077936439},{"$f":"SUMPRODUCT(--(IKTabell1[E/I]=$F33),--(IKTabell1[Vit eller T/A]=$D33),IKTabell1[Felles])*P33","v":11431.682644655004},{"$f":"SUMPRODUCT(--(IKTabell1[E/I]=$F33),--(IKTabell1[Vit eller T/A]=$D33),IKTabell1[Fakultet])*P33","v":6302.170804554431},{"$f":"SUMPRODUCT(--(IKTabell1[E/I]=$F33),--(IKTabell1[Vit eller T/A]=$D33),IKTabell1[Arbeidsplass])*P33","v":12609.83880071718}]
[null,"Honorar forelesere",null,"VIT",null,"E",null,null,null,null,null,null,null,{"$f":"IF(L34=\"C\",(SUMIF('Input C-tabellen'!A:A,$M34,'Input C-tabellen'!B:B)),(SUMIF('Input A-tabellen'!A:A,$M34,'Input A-tabellen'!C:C)/Årsv_Høy))","v":0},null,0,0,{"$f":"SUM(Q34,S34:U34)","v":0},{"$f":"SUMPRODUCT(--(IKTabell1[E/I]=$F34),--(IKTabell1[Vit eller T/A]=$D34),IKTabell1[Felles])*P34","v":0},{"$f":"SUMPRODUCT(--(IKTabell1[E/I]=$F34),--(IKTabell1[Vit eller T/A]=$D34),IKTabell1[Fakultet])*P34","v":0},{"$f":"SUMPRODUCT(--(IKTabell1[E/I]=$F34),--(IKTabell1[Vit eller T/A]=$D34),IKTabell1[Arbeidsplass])*P34","v":0}]
[null,"Honorar sensur",null,"VIT",null,"I",null,null,null,1,30,"A",70,{"$f":"IF(L35=\"C\",(SUMIF('Input C-tabellen'!A:A,$M35,'Input C-tabellen'!B:B)),(SUMIF('Input A-tabellen'!A:A,$M35,'Input A-tabellen'!C:C)/Årsv_Høy))","v":382.98525798525799},1,30,11489.55773955774,18232.600461763654,{"$f":"SUMPRODUCT(--(IKTabell1[E/I]=$F35),--(IKTabell1[Vit eller T/A]=$D35),IKTabell1[Felles])*P35","v":2540.3739210344456},{"$f":"SUMPRODUCT(--(IKTabell1[E/I]=$F35),--(IKTabell1[Vit eller T/A]=$D35),IKTabell1[Fakultet])*P35","v":1400.4824010120958},{"$f":"SUMPRODUCT(--(IKTabell1[E/I]=$F35),--(IKTabell1[Vit eller T/A]=$D35),IKTabell1[Arbeidsplass])*P35","v":2802.1864001593731}]
[null,"Honorar sensur",null,"VIT",null,"E",null,null,null,null,null,null,null,{"$f":"IF(L36=\"C\",(SUMIF('Input C-tabellen'!A:A,$M36,'Input C-tabellen'!B:B)),(SUMIF('Input A-tabellen'!A:A,$M36,'Input A-tabellen'!C:C)/Årsv_Høy))","v":0},null,0,0,0,{"$f":"SUMPRODUCT(--(IKTabell1[E/I]=$F36),--(IKTabell1[Vit eller T/A]=$D36),IKTabell1[Felles])*P36","v":0},{"$f":"SUMPRODUCT(--(IKTabell1[E/I]=$F36),--(IKTabell1[Vit eller T/A]=$D36),IKTabell1[Fakultet])*P36","v":0},{"$f":"SUMPRODUCT(--(IKTabell1[E/I]=$F36),--(IKTabell1[Vit eller T/A]=$D36),IKTabell1[Arbeidsplass])*P36","v":0}]
[null,"Veiledning (gruppe/individuelt)",null,"VIT",null,"I",null,null,null,1,null,"A",70,{"$f":"IF(L37=\"C\",(SUMIF('Input C-tabellen'!A:A,$M37,'Input C-tabellen'!B:B)),(SUMIF('Input A-tabellen'!A:A,$M37,'Input A-tabellen'!C:C)/Årsv_Høy))","v":382.98525798525799},2,0,0,0,{"$f":"SUMPRODUCT(--(IKTabell1[E/I]=$F37),--(IKTabell1[Vit eller T/A]=$D37),IKTabell1[Felles])*P37","v":0},{"$f":"SUMPRODUCT(--(IKTabell1[E/I]=$F37),--(IKTabell1[Vit eller T/A]=$D37),IKTabell1[Fakultet])*P37","v":0},{"$f":"SUMPRODUCT(--(IKTabell1[E/I]=$F37),--(IKTabell1[Vit eller T/A]=$D37),IKTabell1[Arbeidsplass])*P37","v":0}]
[null,"Gi respons på internett",null,"VIT",null,"I",null,null,null,1,null,"A",70,{"$f":"IF(L38=\"C\",(SUMIF('Input C-tabellen'!A:A,$M38,'Input C-tabellen'!B:B)),(SUMIF('Input A-tabellen'!A:A,$M38,'Input A-tabellen'!C:C)/Årsv_Høy))","v":382.98525798525799},1,0,0,0,{"$f":"SUMPRODUCT(--(IKTabell1[E/I]=$F38),--(IKTabell1[Vit eller T/A]=$D38),IKTabell1[Felles])*P38","v":0},{"$f":"SUMPRODUCT(--(IKTabell1[E/I]=$F38),--(IKTabell1[Vit eller T/A]=$D38),IKTabell1[Fakultet])*P38","v":0},{"$f":"SUMPRODUCT(--(IKTabell1[E/I]=$F38),--(IKTabell1[Vit eller T/A]=$D38),IKTabell1[Arbeidsplass])*P38","v":0}]
[null,"Faglig ledelse",null,"VIT",null,"I",null,null,null,1,null,"A",70,{"$f":"IF(L39=\"C\",(SUMIF('Input C-tabellen'!A:A,$M39,'Input C-tabellen'!B:B)),(SUMIF('Input A-tabellen'!A:A,$M39,'Input A-tabellen'!C:C)/Årsv_Høy))","v":382.98525798525799},1,0,0,0,{"$f":"SUMPRODUCT(--(IKTabell1[E/I]=$F39),--(IKTabell1[Vit eller T/A]=$D39),IKTabell1[Felles])*P39","v":0},{"$f":"SUMPRODUCT(--(IKTabell1[E/I]=$F39),--(IKTabell1[Vit eller T/A]=$D39),IKTabell1[Fakultet])*P39","v":0},{"$f":"SUMPRODUCT(--(IKTabell1[E/I]=$F39),--(IKTabell1[Vit eller T/A]=$D39),IKTabell1[Arbeidsplass])*P39","v":0}]
[null,"Annen timebetalt arbeidshjelp (eks. IT-støtte)",null,"T/A",null,"I",null,null,null,1,null,"A",60,{"$f":"IF(L40=\"C\",(SUMIF('Input C-tabellen'!A:A,$M40,'Input C-tabellen'!B:B)),(SUMIF('Input A-tabellen'!A:A,$M40,'Input A-tabellen'!C:C)/Årsv_Høy))","v":317.75184275184273},1,0,0,0,{"$f":"SUMPRODUCT(--(IKTabell1[E/I]=$F40),--(IKTabell1[Vit eller T/A]=$D40),IKTabell1[Felles])*P40","v":0},{"$f":"SUMPRODUCT(--(IKTabell1[E/I]=$F40),--(IKTabell1[Vit eller T/A]=$D40),IKTabell1[Fakultet])*P40","v":0},{"$f":"SUMPRODUCT(--(IKTabell1[E/I]=$F40),--(IKTabell1[Vit eller T/A]=$D40),IKTabell1[Arbeidsplass])*P40","v":0}]
[null,"Fyll inn",null,null,null,null,null,null,null,null,null,null,null,{"$f":"IF(L41=\"C\",(SUMIF('Input C-tabellen'!A:A,$M41,'Input C-tabellen'!B:B)),(SUMIF('Input A-tabellen'!A:A,$M41,'Input A-tabellen'!C:C)/Årsv_Høy))","v":0},null,0,0,0,{"$f":"SUMPRODUCT(--(IKTabell1[E/I]=$F41),--(IKTabell1[Vit eller T/A]=$D41),IKTabell1[Felles])*P41","v":0},{"$f":"SUMPRODUCT(--(IKTabell1[E/I]=$F41),--(IKTabell1[Vit eller T/A]=$D41),IKTabell1[Fakultet])*P41","v":0},{"$f":"SUMPRODUCT(--(IKTabell1[E/I]=$F41),--(IKTabell1[Vit eller T/A]=$D41),IKTabell1[Arbeidsplass])*P41","v":0}]
[null,"Fyll inn",null,null,null,null,null,null,null,null,null,null,null,{"$f":"IF(L42=\"C\",(SUMIF('Input C-tabellen'!A:A,$M42,'Input C-tabellen'!B:B)),(SUMIF('Input A-tabellen'!A:A,$M42,'Input A-tabellen'!C:C)/Årsv_Høy))","v":0},null,0,0,0,{"$f":"SUMPRODUCT(--(IKTabell1[E/I]=$F42),--(IKTabell1[Vit eller T/A]=$D42),IKTabell1[Felles])*P42","v":0},{"$f":"SUMPRODUCT(--(IKTabell1[E/I]=$F42),--(IKTabell1[Vit eller T/A]=$D42),IKTabell1[Fakultet])*P42","v":0},{"$f":"SUMPRODUCT(--(IKTabell1[E/I]=$F42),--(IKTabell1[Vit eller T/A]=$D42),IKTabell1[Arbeidsplass])*P42","v":0}]
[]
[null,"Feriepenger",null,null,null,null,null,null,null,0.12,null,null,null,null,null,null,{"$f":"SUM(Q33:Q42)*J44","v":7583.1081081081084},{"$f":"Q44","v":7583.1081081081084}]
[null,"Pensjonsutgifter",null,null,null,null,null,null,null,0.115,null,null,null,null,null,null,{"$f":"SUM(Q33:Q42,Q44)*Pensjon","v":8139.2027027027034},{"$f":"Q45","v":8139.2027027027034},null,null,null,null,null,"Skjules"]
[null,"Arbeidsgiveravgift",null,null,null,null,null,null,null,0.14099999999999999,null,null,null,null,null,null,{"$f":"SUM(Q33:Q42,Q44,Q45)*J46","v":11126.997851351352},{"$f":"Q46","v":11126.997851351352},null,null,null,null,null,"Kontroller"]
[null,null,null,null,null,null,null,null,null,null,"sum",null,null,"snitt",null,"sum",null,null,null,null,null,null,null,"Fellesadm","Fakadm","Arbeidsplass"]
[null,"Sum undervisningskostnader på fakultet (inkl. IK)",null,null,null,null,null,null,null,null,{"$f":"SUM(K33:K42)","v":75},null,null,{"$f":"IFERROR(R48/K48,0)","v":1695.0481493581633},null,{"$f":"SUM(P33:P42)","v":165},{"$f":"SUM(Q33:Q47)","v":90041.876229729736},{"$f":"SUM(R33:R47)","v":127128.61120186225},{"$f":"SUM(S33:S47)","v":13972.056565689451},{"$f":"SUM(T33:T47)","v":7702.6532055665266},{"$f":"SUM(U33:U47)","v":15412.025200876553},null,null,{"$f":"(S48/$P$48)","v":84.679130701148182},{"$f":"(T48/$P$48)","v":46.682746700403193},{"$f":"(U48/$P$48)","v":93.40621333864577}]
[null,null,null,null,null,null,null,null,null,null,null,null,null,null,null,null,null,null,null,null,null,null,null,{"$f":"'IK Ansatt'!H40","v":84.679130701148182},{"$f":"'IK Ansatt'!H39","v":46.682746700403193},{"$f":"'IK Ansatt'!H41","v":93.40621333864577}]
[null,null,null,null,null,null,null,null,null,null,"Timer",null,null,"Sats",null,null,null,null,null,null,null,null,null,{"$f":"X48*Årsv_Høy","v":137857.62478146923},{"$f":"Y48*Årsv_Høy","v":75999.511628256398},{"$f":"Z48*Årsv_Høy","v":152065.31531531533}]
[null,"Åpningsarrangement/kunstneriske innslag",null,null,null,null,null,"*",null,null,null,null,null,null,null,null,null,{"$f":"K51*N51","v":0},null,null,null,null,null,{"$f":"IF(X49=X48,\"Ok\",\"FEIL!\")","v":"Ok"},{"$f":"IF(Y49=Y48,\"Ok\",\"FEIL!\")","v":"Ok"},{"$f":"IF(Z49=Z48,\"Ok\",\"FEIL!\")","v":"Ok"},"UiA-internt, skjule rad"]
[null,"Undervisning faktura enkeltmannsforetak (oppg.pl.)",null,null,null,null,null,null,null,null,null,null,null,null,null,null,null,{"$f":"K52*N52","v":0}]
[null,"Undervisning faktura firma (ikke oppg.pl.)",null,null,null,null,null,null,null,null,null,null,null,null,null,null,null,{"$f":"K53*N53","v":0}]
[null,"Sum undervisningskostnader eksternt",null,null,null,null,null,null,null,null,{"$f":"IF(SUM(K51:K53)<=0,\"-\",SUM(K51:K53))","v":"-"},null,null,null,null,null,null,{"$f":"SUM(R51:R53)","v":0}]
[]
[null,"Sum undervisningskostnader",null,null,null,null,null,null,null,null,null,null,null,null,null,null,null,{"$f":"SUM(R54,R48)","v":127128.61120186225},{"$f":"R56/TotaleKostnader","v":0.49331761455542589},"av tot. kost."]
[]
[null,"Prosjektadministrasjon (70/82)",null,null,null,null,null,"Konto"]
[null,null,null,null,null,null,null,null,null,null,"Timer","Ltab.","Ltr.","Sats"]
[null,"Prosjektledelse",null,"T/A",null,"I",null,null,null,null,0,"A",60,{"$f":"(IF(L60=\"C\",(SUMIF('Input C-tabellen'!A:A,$M60,'Input C-tabellen'!B:B)),IF(L60=\"A\",(SUMIF('Input A-tabellen'!A:A,$M60,'Input A-tabellen'!C:C)/Årsv_Lav),\"Feil\")))*(1+Pensjon)*(1+AGA)*(1+FP)","v":452.75849990171992},null,null,{"$f":"K60*N60","v":0},{"$f":"SUM(Q60,S60:U60)","v":0},null,null,{"$f":"SUMPRODUCT(--(IKTabell1[E/I]=$F60),--(IKTabell1[Vit eller T/A]=$D60),IKTabell1[Arbeidsplass])*K60","v":0}]
[null,"Prosjektkonsulent",null,"T/A",null,"I",null,null,null,null,0,"A",50,{"$f":"(IF(L61=\"C\",(SUMIF('Input C-tabellen'!A:A,$M61,'Input C-tabellen'!B:B)),IF(L61=\"A\",(SUMIF('Input A-tabellen'!A:A,$M61,'Input A-tabellen'!C:C)/Årsv_Lav),\"Feil\")))*(1+Pensjon)*(1+AGA)*(1+FP)","v":382.03960024570034},null,null,{"$f":"K61*N61","v":0},{"$f":"SUM(Q61,S61:U61)","v":0},null,null,{"$f":"SUMPRODUCT(--(IKTabell1[E/I]=$F61),--(IKTabell1[Vit eller T/A]=$D61),IKTabell1[Arbeidsplass])*K61","v":0}]
[null,"Sum kostnader prosjektadministrasjon (ekskl. IK)",null,null,null,null,null,null,null,null,{"$f":"SUM(K60:K61)","v":0},null,null,null,null,null,{"$f":"SUM(Q60:Q61)","v":0},{"$f":"SUM(R60:R61)","v":0},{"$f":"R62/TotaleKostnader","v":0},"av tot. kost.",{"$f":"SUM(U60:U61)","v":0}]
[]
[null,"Andre direkte prosjektkostnader (60)",null,null,null,null,null,"Konto",null,"Kommentarer"]
[null,"Reisekostnader",null,null,null,null,null,null,null,null,null,null,null,null,null,null,null,0]
[null,"Bevertning (NB, husk deltakerliste)",null,null,null,null,null,null,null,null,null,null,null,null,null,null,null,0]
[null,"Kursmateriell, bøker",null,null,null,null,null,null,null,null,null,null,null,null,null,null,null,0]
[null,"Trykksak, brosjyrer",null,null,null,null,null,"73*",null,null,null,null,null,null,null,null,null,0,null,null,null,null,null,null,null,null,"UiA-internt, skjule rad"]
[null,"Annonsering og markedsføring (inkl. trykksaker, brosjyrer mm)",null,null,null,null,null,null,null,null,null,null,null,null,null,null,null,0]
[null,"Andre driftskostnader",null,null,null,null,null,null,null,null,null,null,null,null,null,null,null,0]
[null,"Sum andre prosjektkostnader",null,null,null,null,null,null,null,null,null,null,null,null,null,null,null,{"$f":"SUM(R65:R70)","v":0},{"$f":"R71/TotaleKostnader","v":0},"av tot. kost."]
[]
[null,"Leiestedskostnader",null,null,null,null,null,"Konto",null,"Lokaltype",null,null,null,null,"Timer","Sats"]
[null,"Leiested, internt",{"$f":"IF(Prosjekttype=O14,\"Må fylles ut ved oppdrag\",\"\")","v":""},null,null,null,null,null,null,"Aud, 32 plasser",null,null,null,null,30,1100,null,{"$f":"P74*O74","v":33000},"Sats er hentet fra leiestedsmodell"]
[null,"Leiested, eksternt",null,null,null,null,null,null,null,null,null,null,null,null,null,null,null,{"$f":"P75*O75","v":0}]
[null,"Sum leiestedskostnader",null,null,null,null,null,null,null,{"$f":"IF(O76<0.8*SUM(K33:K34,K52,K53),\"Leietimer er under 80% av undervisningstimer.\",\"\")","v":"Leietimer er under 80% av undervisningstimer."},null,null,null,null,{"$f":"SUM(O74:O75)","v":30},null,null,{"$f":"SUM(R74:R75)","v":33000},{"$f":"R76/TotaleKostnader","v":0.12805521216997753},"av tot. kost."]
[]
[null,"Indirekte kostnader, student",null,null,null,null,null,null,null,null,null,null,null,null,null,null,null,null,"Fellesadm","Fakadm","Arbeidsplass"]
[null,"Studentsats",null,null,null,null,null,null,null,null,null,null,null,null,null,null,null,{"$f":"SUM(S79:T79)","v":97572.730592773645},{"$f":"IF(C16=\"Ja\",'IK Student'!E47,0)","v":67947.950214628421},{"$f":"IF(C16=\"Ja\",'IK Student'!E46,0)","v":29624.780378145217}]
[null,"INFO - Sats avhenger kun av antall studiepoeng",null,null,null,null,null,null,null,null,null,null,null,null,null,null,null,null,{"$f":"R79/TotaleKostnader","v":0.37862717327459661},"av tot. kost."]
[]
[null,"Totale kostnader",null,null,null,null,null,null,null,null,null,null,null,null,null,null,null,{"$f":"R56+R71+R62+R76+R79","v":257701.3417946359},1,"totale kostnader"]
[]
[null,"Resultat",null,null,null,null,null,null,null,null,null,null,null,null,null,null,null,{"$f":"R30-R82","v":67298.658205364103},{"$f":"IF(R84>0,\"Kalkulert overskudd\",\"Kalkulert underskudd\")","v":"Kalkulert overskudd"}]
[null,"Sikkerhetsmargin (%-vis svikt i budsjettert antall deltakere)",null,null,null,null,null,null,null,0.05,null,null,null,null,null,null,null,{"$f":"R30*J85","v":16250},null,null,null,null,null,null,null,null,"UiA-internt, skjule rad"]
[null,"Resultatkrav til prosjektet (5 % av direkte lønnskostnader)",null,null,null,null,null,null,null,0.05,null,null,null,null,null,null,null,{"$f":"(Q48+Q62+Q54)*J86","v":4502.0938114864866},null,null,null,null,null,null,null,null,"UiA-internt, skjule rad"]
[null,"Resultat etter sikkerhetsmargin og resultatkrav",null,null,null,null,null,"",null,null,null,null,null,null,null,null,null,{"$f":"R84-R85-R86","v":46546.564393877619},{"$f":"IF(R87>0,\"\",\"OK?\")","v":""},null,null,null,null,null,null,null,"UiA-internt, skjule rad"]
[null,null,null,null,null,null,null,null,null,null,null,null,null,null,null,null,null,null,"Skrevet ut:",{"$f":"NOW()","v":"2018-11-20T09:30:10.890"}]
[]
[null,"TIL INFORMASJON"]
[]
[null,"Spesifiserte indirekte kostnader",null,null,null,null,null,"Konto",null,null,null,null,null,null,null,null,null,null,"SentralAdm","FakAdm","Arbeidsplass"]
[null,"Sentraladministrasjon",null,null,null,null,null,null,null,null,null,null,null,null,null,null,null,{"$f":"SUM(S93:V93)","v":13972.056565689451},{"$f":"SUM(S48)","v":13972.056565689451}]
[null,"Fakultet",null,null,null,null,null,null,null,null,null,null,null,null,null,null,null,{"$f":"SUM(S94:V94)","v":7702.6532055665266},null,{"$f":"SUM(T48)","v":7702.6532055665266},null,null,null,null,null,null,null,"Fra denne arkfanen, undervisning, med bakrgunn i IK tabell (matrise) og IK Ansatt"]
[null,"Arbeidsplass",null,null,null,null,null,null,null,null,null,null,null,null,null,null,null,{"$f":"U95","v":15412.025200876553},null,null,{"$f":"U48+U62","v":15412.025200876553}]
[null,"Student",null,null,null,null,null,null,null,null,null,null,null,null,null,null,null,{"$f":"SUM(S96:T96)","v":97572.730592773645},{"$f":"S79","v":67947.950214628421},{"$f":"T79","v":29624.780378145217},0,null,null,"Hvor mye av student IK skal godskrives fakultet?",null,null,null,"Fra arkfane \"IK Student\""]
[null,"Sum indirekte kostnader",null,null,null,null,null,null,null,null,null,null,null,null,null,null,null,{"$f":"SUM(R93:R96)","v":134659.46556490619},{"$f":"SUM(S93:S96)","v":81920.006780317868},{"$f":"SUM(T93:T96)","v":37327.43358371174},{"$f":"SUM(U93:U96)","v":15412.025200876553}]
[null,null,null,null,null,null,null,null,null,null,null,null,null,null,null,null,null,{"$f":"R97/TotaleKostnader","v":0.52254080101848022},"av totale kostnader"]
[null,"Kan godskrives fakultet:"]
[null,"UiA internt - Indirekte kostnader (ekskl. Arbeidsplass)",null,null,null,null,null,null,null,null,null,null,null,null,null,null,null,{"$f":"R97-U97","v":119247.44036402964},null,null,null,null,null,null,null,null,"UiA-internt, skjule rad"]
[]
[null,"UiA internt - fakultetenes meruttelling i UiAs interne budsjettmodellen",null,null,null,null,null,null,null,null,null,null,null,null,null,null,null,{"$f":"UiA___finansiert__FS*Antall_deltakere*'IK Student'!W34*(Antall_stp/60)","v":19631.63265306122},null,null,null,null,null,null,null,null,"UiA-internt, skjule rad"]
[null,"Meruttelling UH ved registrering av finansieringsprosenten (celle H21) i FS (gitt at alle består)",null,null,null,null,null,null,null,null,null,null,null,null,null,null,null,{"$f":"UiA___finansiert__FS*Antall_deltakere*RBF_kurs*(Antall_stp/60)","v":33163.265306122448}]

{"sheet":"INFO KDs-finansieringskategori","index":6,"n_rows":42,"n_cols":2,"rows_kept":42,"cut":false,"hidden":false,"merged":[]}
[]
[null,"Oversikten nedenfor angir nærmere hvordan ulike studier er fordelt på kategorier"]
[null,"(Hentet fra Blå Bok for 2018)"]
[]
[null,"(Fra rapporteringsåret 2010 skal studiepoeng avlagt på videreutdanninger rapporteres i samme kategori som tilsvarende grunnutdanning)"]
[]
[null,"Kategori A"]
[null,"Profesjonsstudiene i medisin og odontologi, veterinærutdanning, kunstakademiet (NTNU),"]
[null,"film- og fjernsynsutdanning (HiL) og scenografi og skuespill (HiØ)."]
[]
[null,"Kategori B"]
[null,"5-årige masterprogram i arkitektur og industridesign, utøvende kunst- og"]
[null,"musikkutdanninger på lavere og høyere grad, grunnutdanning i produktdesign,"]
[null,"grunnutdanning i animasjon, profesjonsstudiene i psykologi og farmasi, samt"]
[null,"grunnutdanning i ortopediingeniør."]
[]
[null,"Kategori C"]
[null,"Realfag, teknologi, fiskerifag og kunst på høyere grads nivå, faglærerutdanning i"]
[null,"musikk, dans og drama."]
[]
[null,"Kategori D"]
[null,"Humanistiske, samfunns- og idrettsvitenskapelige fag på høyere grads nivå, 5-årige"]
[null,"masterprogram i teknologi, bibliotek samt økonomi og administrasjon på høyere grads"]
[null,"nivå. Grunnutdanning i fysioterapi, mensendieck, bioingeniør, ergoterapi, radiografi,"]
[null,"audiografi, døvetolk, reseptar, tannteknikk, tannpleie, fotojournalist, jordmor,"]
[null,"stråleterapi, ABIOK-utdanninger (videreutdanning i anestesi-, barne-, intensiv-,"]
[null,"operasjons- og kreftsykepleie). Visuell kommunikasjon, tekniske mediefag (film- og"]
[null,"fjernsynsproduksjon), grunnskolelærerutdanning, faglærerutdanning i kunst- og"]
[null,"håndtverksfag, allmennlærerutdanning med fordyping i musikk, 5-årig integrert lærerutdanning, "]
[null,"samt årsstudium i praktisk pedagogisk utdanning."]
[]
[null,"Kategori E"]
[null,"Sykepleier-, vernepleier-, barnevernspedagog-, barnehagelærer, yrkesfaglærer, journalist-,"]
[null,"ingeniør- og dyrepleierutdanning. Profesjonsstudiet i juss, faglærerutdanning i praktisk"]
[null,"estetiske fag, faglærerutdanning i kroppsøving. Teknologisk og maritim utdanning,"]
[null,"realfag, idrettsfag, friluftsfag, kunstfag, landbruksfag, skogfag, husdyrfag og fiskerifag på lavere grads nivå."]
[null,"Videreutdanning i helsesøster, psykisk helse og tegnspråk."]
[]
[null,"Kategori F"]
[null,"Humanistiske og samfunnsvitenskapelige fag på lavere grads nivå, økonomi og"]
[null,"administrasjon på lavere grads nivå, revisor-, sosionom- og"]
[null,"bibliotekarutdanning, samt reiseliv og ex. phil."]

{"sheet":"Basis","index":7,"n_rows":29,"n_cols":11,"rows_kept":29,"cut":false,"hidden":false,"merged":[[2,4,2,5],[2,7,2,8],[1,2,2,2]]}
["Indirekte kostnader, fordeling Ansatt og Student",null,null,null,null,null,null,null,null,null,"Kommentarer"]
[null,null,"Hentet fra: Input IK fordelt F&U, kol. S"]
[null,null,null,null,"%-fordeling",null,null,"Fordeling i kroner",null,null,"Generelt:"]
[null,null,"Totaler",null,"Utd.årsverk","Student",null,"Utd.årsverk","Student",null,"%-fordeling for utd.årsverk/student er hentet fra TDI-mal, arkfane \"Input DBH\""]
["Fakultetsadministrasjonen (kun tall fra utdanning) "]
["Indirekte kostnader for utdanning, ekskl. arbeidsplass",null,89003028.067851052,null,{"$f":"371.6/(371.6+799.5)","v":0.31730851336350446},{"$f":"100%-E6","v":0.68269148663649548},null,{"$f":"$C$6*E6","v":28241418.521060079},{"$f":"$C$6*F6","v":60761609.546790965},null,"Celle E6 hentet fra:  Input DBH, AD11/(AD11+AK11) = utd.årsverk"]
[{"$f":"\"Sum \"& $A$5","v":"Sum Fakultetsadministrasjonen (kun tall fra utdanning) "},null,{"$f":"SUM(C6)","v":89003028.067851052},null,null,null,null,{"$f":"H6","v":28241418.521060079},{"$f":"$I$6","v":60761609.546790965}]
[]
["Sentraladministrasjon        (kun tall fra utdanning, ekskl. arbeidsplass)                        "]
["Universitetsbiblioteket",null,37231526.451916993,null,{"$f":"371.6/(371.6+1998.7)","v":0.15677340421043751},{"$f":"100%-E10","v":0.84322659578956249},null,{"$f":"$C10*E10","v":5836913.1458179792},31394613.306099012,null,"Cell E10 hentet fra:  Input DBH, AD11/(AD11+AK33) = utd.årsverk"]
["IT-avdelingen",null,22266881.042324763,null,0,1,null,{"$f":"$C11*E11","v":0},{"$f":"$C11*F11","v":22266881.042324763},null,"100% på Student fordi IT for ansatte/årsverk inngår i arbeidsplassats"]
["Driftsavdelingen (UiA:  kr 0 fordi i sin helhet i internhusleie)",null,0,null,{"$f":"371.6/(371.6+799.5)","v":0.31730851336350446},{"$f":"100%-E12","v":0.68269148663649548},null,{"$f":"$C12*E12","v":0},{"$f":"$C12*F12","v":0},null,"Celle E12 hentet fra:  Input DBH, AD11/(AD11+AK35) = utd.årsverk"]
["Forskningssekretariat",null,0,null,null,null,null,null,null,null,"0% pga inngår i sin helhet i IK forskning"]
["Studieadministrasjon",null,75942675.811198398,null,0,1,null,0,{"$f":"$C14*F14","v":75942675.811198398},null,"Antar at alle kostnader ligger hos student."]
["Personalavdelingen",null,0,null,null,null,null,null,null,null,"0% pga inngår i sin helhet i arbeidsplassats"]
["Økonomiavdelingen",null,0,null,null,null,null,null,null,null,"0% pga inngår i sin helhet i arbeidsplassats"]
["Øvrig sentraladmin.",null,34170251.612718314,null,{"$f":"371.6/(371.6+79.9)","v":0.82303433001107429},{"$f":"100%-E17","v":0.17696566998892571},null,28123290.142383449,6046961.4703348661,null,"Celle E17 hentet fra:  Input DBH, AD11/(AD11+AK40) = utd.årsverk"]
["RegnTekn (UiA)",null,20980522.258846968,null,{"$f":"371.6/(371.6+79.9)","v":0.82303433001107429},{"$f":"100%-E18","v":0.17696566998892571},null,17267690.080592547,3712832.1782544227,null,"Celle E18 hentet fra:  Input DBH, AD11/(AD11+AK40) = utd.årsverk"]
["Sum Sentraladministrasjon",null,{"$f":"SUM(C10:C18)","v":190591857.17700544},null,null,null,null,{"$f":"SUM(H10:H18)","v":51227893.368793979},{"$f":"SUM(I10:I18)","v":139363963.80821148}]
[]
["Sum Fakultet- og Sentraladministrasjon",null,{"$f":"C7+C19","v":279594885.24485648},null,null,null,null,{"$f":"H7+H19","v":79469311.889854059},{"$f":"I7+I19","v":200125573.35500243},null,"Avsjekk:  Er C21 her = Input IK fordelt Forskn & Utdan, S11?"]
[]
[]
["Arbeidsplassats"]
["Arbeidsplassats, hentet fra TDI",null,{"$f":"94523800*(371.6/621.6)","v":56507471.171171181},null,null,null,null,{"$f":"C25","v":56507471.171171181},0,null,"Celle C25 hentet fra:  Input IK fordelt Forskn..., G11*(S8/G7) = arb.pl.kostn. for utd.årsverk"]
[]
[]
["Sum Fakultet- og Sentraladministrasjon samt Arbeidsplassats",null,{"$f":"C25+C21","v":336102356.41602767},null,null,null,null,{"$f":"H25+H21","v":135976783.06102523},{"$f":"I25+I21","v":200125573.35500243},null,"Disse spesifiseres videre i arkfanene \"IK Ansatt\" og \"IK Student\""]
[null,null,{"$f":"C28/$C$28","v":1},null,null,null,null,0.40456956181739201,0.59543043818260799]

{"sheet":"IK Ansatt","index":8,"n_rows":42,"n_cols":12,"rows_kept":42,"cut":false,"hidden":false,"merged":[]}
["Indirekte kostnader - Ansatt"]
["For teknisk og administrativt ansatte, brukes kun arbeidsplasssatsen for indirekte kostnader.",null,null,null,null,null,null,null,null,"Foreleser (vitenskapelig)"]
[null,null,null,null,null,null,null,"Intern (som forutsatt i TDI-modellen)",null,null,"Ekstern (ikke grunnlag for IK i TDI-modellen!)"]
[null,"Henført til ansatt","Utd. årsverk","Kostnad per utd. årsverk",null,null,"%","Beløp","Kommentar","%","Beløp","Kommentar"]
["Fakultetsadministrasjonen                                                        "]
[{"$f":"Basis!A6","v":"Indirekte kostnader for utdanning, ekskl. arbeidsplass"},{"$f":"Basis!H6","v":28241418.521060079},{"$f":"'Input Grunndata'!$C$9","v":371.6},{"$f":"B6/C6","v":75999.511628256398},null,null,1,{"$f":"$D$6*G6","v":75999.511628256398},null,0,{"$f":"D6*J6","v":0}]
[{"$f":"\"Sum \"& $A$5","v":"Sum Fakultetsadministrasjonen                                                        "},{"$f":"Basis!H7","v":28241418.521060079},null,{"$f":"SUM(D6)","v":75999.511628256398},null,null,null,{"$f":"SUM(H6)","v":75999.511628256398},null,null,{"$f":"SUM(K6)","v":0}]
[]
["Sentraladministrasjon"]
[{"$f":"Basis!A10","v":"Universitetsbiblioteket"},{"$f":"Basis!H10","v":5836913.1458179792},{"$f":"'Input Grunndata'!$C$9","v":371.6},{"$f":"B10/C10","v":15707.516538799728},null,null,1,{"$f":"D10*G10","v":15707.516538799728},null,0,{"$f":"D10*J10","v":0}]
[{"$f":"Basis!A11","v":"IT-avdelingen"},{"$f":"Basis!H11","v":0},{"$f":"'Input Grunndata'!$C$9","v":371.6},{"$f":"B11/C11","v":0},null,null,null,null,"100% på student, men inkludert i arbeidsplassats for ansatte"]
[{"$f":"Basis!A12","v":"Driftsavdelingen (UiA:  kr 0 fordi i sin helhet i internhusleie)"},{"$f":"Basis!H12","v":0},{"$f":"'Input Grunndata'!$C$9","v":371.6},{"$f":"B12/C12","v":0},null,null,1,{"$f":"D12*G12","v":0},null,0,{"$f":"D12*J12","v":0}]
[{"$f":"Basis!A13","v":"Forskningssekretariat"},{"$f":"Basis!H13","v":0},{"$f":"'Input Grunndata'!$C$9","v":371.6},{"$f":"B13/C13","v":0},null,null,null,null,"Forskning er ikke aktuelt for utdanning"]
[{"$f":"Basis!A14","v":"Studieadministrasjon"},{"$f":"Basis!H14","v":0},{"$f":"'Input Grunndata'!$C$9","v":371.6},{"$f":"B14/C14","v":0},null,null,null,null,"100% på student"]
[{"$f":"Basis!A15","v":"Personalavdelingen"},{"$f":"Basis!H15","v":0},{"$f":"'Input Grunndata'!$C$9","v":371.6},{"$f":"B15/C15","v":0},null,null,null,null,"Inkludert i arbeidsplassatsen"]
[{"$f":"Basis!A16","v":"Økonomiavdelingen"},{"$f":"Basis!H16","v":0},{"$f":"'Input Grunndata'!$C$9","v":371.6},0,null,null,null,null,"Inkludert i arbeidsplassatsen"]
[{"$f":"Basis!A17","v":"Øvrig sentraladmin."},{"$f":"Basis!H17","v":28123290.142383449},{"$f":"'Input Grunndata'!$C$9","v":371.6},75681.620404691726,null,null,1,{"$f":"D17*G17","v":75681.620404691726},null,0,{"$f":"D17*J17","v":0}]
[{"$f":"Basis!A18","v":"RegnTekn (UiA)"},{"$f":"Basis!H18","v":17267690.080592547},{"$f":"'Input Grunndata'!$C$9","v":371.6},46468.487837977787,null,null,1,{"$f":"D18*G18","v":46468.487837977787},null,0,{"$f":"D18*J18","v":0}]
[{"$f":"Basis!A19","v":"Sum Sentraladministrasjon"},{"$f":"Basis!H19","v":51227893.368793979},null,{"$f":"SUM(D10:D18)","v":137857.62478146923},null,null,null,{"$f":"SUM(H10:H18)","v":137857.62478146923},null,null,{"$f":"SUM(K10:K18)","v":0}]
[null,{"$f":"Basis!H20","v":0}]
["Sum Fakultet- og Sentraladministrasjon",{"$f":"B7+B19","v":79469311.889854059},{"$f":"'Input Grunndata'!$C$9","v":371.6},{"$f":"D7+D19","v":213857.13640972564},null,null,null,{"$f":"H7+H19","v":213857.13640972564}]
[]
[]
["Arbeidsplassats"]
["Arbeidsplassats, hentet fra TDI",{"$f":"Basis!C25","v":56507471.171171181},{"$f":"'Input Grunndata'!$C$9","v":371.6},{"$f":"B25/C25","v":152065.31531531533},null,null,1,{"$f":"$D$25*G25","v":152065.31531531533},null,0,{"$f":"D25*J25","v":0}]
[]
[]
["Sum Fakultet- og Sentraladministrasjon samt Arbeidsplassats",{"$f":"B25+B21","v":135976783.06102523},{"$f":"'Input Grunndata'!$C$9","v":371.6},365922.45172504097,null,null,null,{"$f":"H25+H21","v":365922.45172504097},null,null,{"$f":"K25+K21","v":0}]
[]
[]
[]
["Total"]
["Fakultetsadministrasjon",null,null,{"$f":"D7","v":75999.511628256398},null,null,null,{"$f":"H7","v":75999.511628256398},null,null,{"$f":"K7","v":0}]
["Sentraladministrasjon",null,null,{"$f":"D19","v":137857.62478146923},null,null,null,{"$f":"H19","v":137857.62478146923},null,null,{"$f":"K19","v":0}]
["Arbeidsplassats",null,null,{"$f":"D25","v":152065.31531531533},null,null,null,{"$f":"H25","v":152065.31531531533},null,null,{"$f":"K25","v":0}]
["Sum",null,null,{"$f":"SUM(D33:D35)","v":365922.45172504097},null,null,null,{"$f":"SUM(H33:H35)","v":365922.45172504097},null,null,{"$f":"SUM(K33:K35)","v":0}]
[]
["Timesats for indirekte kostnader"]
[{"$f":"A33","v":"Fakultetsadministrasjon"},null,null,{"$f":"D7/Årsv_Høy","v":46.682746700403193},null,null,null,{"$f":"H7/Årsv_Høy","v":46.682746700403193},null,null,{"$f":"K7/Årsv_Høy","v":0}]
["Sentraladministrasjon",null,null,{"$f":"D19/Årsv_Høy","v":84.679130701148182},null,null,null,{"$f":"H19/Årsv_Høy","v":84.679130701148182},null,null,{"$f":"K19/Årsv_Høy","v":0}]
["Arbeidsplassats",null,null,{"$f":"D25/Årsv_Høy","v":93.40621333864577},null,null,null,{"$f":"H25/Årsv_Høy","v":93.40621333864577},null,null,{"$f":"K25/Årsv_Høy","v":0}]
["Sum",null,null,{"$f":"SUM(D39:D41)","v":224.76809074019712},null,null,null,{"$f":"SUM(H39:H41)","v":224.76809074019712},null,null,{"$f":"SUM(K39:K41)","v":0}]

{"sheet":"IK Student","index":9,"n_rows":47,"n_cols":32,"rows_kept":47,"cut":false,"hidden":false,"merged":[[25,11,26,12],[26,9,26,10],[26,7,26,8],[32,9,32,10],[1,1,2,1],[1,7,1,12],[2,7,2,8],[2,11,2,12],[2,9,2,10]]}
["Indirekte kostnader - Student",null,null,null,null,null,null,null,null,null,null,null,null,null,null,null,"SKJULES - UiA spesifikt"]
[null,null,null,null,null,null,null,"Student - Fordeling på kostnadsdrivere",null,null,null,null,null,null,null,null,1,{"$f":"Q2+1","v":2},3,4,5,6,7,8,9,10,11,12,13,14,15,16]
[null,null,null,null,null,null,null,"1. Kurs/emne",null,"2. Studiepoeng",null,"3. Deltakere"]
[null,"Henført til student",null,"Kostnader som ikke er relevante for EVU","Gjenstående beløp","Kommentar",null,"%","Beløp","%","Beløp","%","Beløp",null,"Kommentarer"]
["Fakultetsadministrasjonen                                                        "]
["Indirekte kostnader for utdanning, ekskl. arbeidsplass",{"$f":"Basis!I6","v":60761609.546790965},null,null,{"$f":"B6-D6","v":60761609.546790965},"se kolonne O",null,0,{"$f":"H6*$E6","v":0},1,{"$f":"J6*$E6","v":60761609.546790965},0,{"$f":"L6*$E6","v":0},null,"Celle D6:  Reduserer TA-årsverk i BFV som er parallell til… (Se Grunndata...)"]
[{"$f":"\"Sum \"& $A$5","v":"Sum Fakultetsadministrasjonen                                                        "},{"$f":"Basis!I7","v":60761609.546790965},{"$f":"B7/$B$22","v":0.30361741644585344},null,{"$f":"SUM(E6)","v":60761609.546790965},null,null,null,{"$f":"SUM(I6)","v":0},null,{"$f":"SUM(K6)","v":60761609.546790965},null,{"$f":"SUM(M6)","v":0}]
[]
["Sentraladministrasjon "]
[{"$f":"Basis!A10","v":"Universitetsbiblioteket"},{"$f":"Basis!I10","v":31394613.306099012},null,0,{"$f":"B10-D10","v":31394613.306099012},null,null,0,{"$f":"H10*$E10","v":0},1,{"$f":"J10*$E10","v":31394613.306099012},0,{"$f":"L10*$E10","v":0},null,"Bør det reduseres i kolonne D?  Neppe…"]
[{"$f":"Basis!A11","v":"IT-avdelingen"},{"$f":"Basis!I11","v":22266881.042324763},null,0,{"$f":"B11-D11","v":22266881.042324763},null,null,0,{"$f":"H11*$E11","v":0},1,{"$f":"J11*$E11","v":22266881.042324763},0,{"$f":"L11*$E11","v":0},null,"Bør det reduseres i kolonne D?  Neppe…"]
[{"$f":"Basis!A12","v":"Driftsavdelingen (UiA:  kr 0 fordi i sin helhet i internhusleie)"},{"$f":"Basis!I12","v":0},null,0,{"$f":"B12-D12","v":0},null,null,0,{"$f":"H12*$E12","v":0},1,{"$f":"J12*$E12","v":0},0,{"$f":"L12*$E12","v":0},null,"Bør det reduseres i kolonne D?  Neppe…"]
[{"$f":"Basis!A13","v":"Forskningssekretariat"},{"$f":"Basis!I13","v":0},null,0,{"$f":"B13-D13","v":0}]
[{"$f":"Basis!A14","v":"Studieadministrasjon"},{"$f":"Basis!I14","v":75942675.811198398},null,0,75942675.811198398,null,null,0,{"$f":"H14*$E14","v":0},1,{"$f":"J14*$E14","v":75942675.811198398},0,{"$f":"L14*$E14","v":0},null,"Bør det reduseres i kolonne D?  Neppe…"]
[{"$f":"Basis!A15","v":"Personalavdelingen"},{"$f":"Basis!I15","v":0},null,0,0]
[{"$f":"Basis!A16","v":"Økonomiavdelingen"},{"$f":"Basis!I16","v":0},null,0,0]
[{"$f":"Basis!A17","v":"Øvrig sentraladmin."},{"$f":"Basis!I17","v":6046961.4703348661},null,0,6046961.4703348661,null,null,0,{"$f":"H17*$E17","v":0},1,{"$f":"J17*$E17","v":6046961.4703348661},0,{"$f":"L17*$E17","v":0},null,"Bør det reduseres i kolonne D?  Neppe…"]
[{"$f":"Basis!A18","v":"RegnTekn (UiA)"},{"$f":"Basis!I18","v":3712832.1782544227},null,0,3712832.1782544227,null,null,0,0,1,{"$f":"J18*$E18","v":3712832.1782544227},0,{"$f":"L18*$E18","v":0},null,"Bør det reduseres i kolonne D?  Neppe…"]
[{"$f":"Basis!A19","v":"Sum Sentraladministrasjon"},{"$f":"Basis!I19","v":139363963.80821148},{"$f":"B19/$B$22","v":0.69638258355414662},null,{"$f":"SUM(E10:E18)","v":139363963.80821148},null,null,null,{"$f":"SUM(I10:I18)","v":0},null,{"$f":"SUM(K10:K18)","v":139363963.80821148},null,{"$f":"SUM(M10:M18)","v":0}]
[]
[]
["Sum Fakultet- og Sentraladministrasjon",{"$f":"SUM(B7,B19)","v":200125573.35500243},{"$f":"B22/$B$22","v":1},null,{"$f":"SUM(E7,E19)","v":200125573.35500243},null,null,{"$f":"I22/$B$22","v":0},{"$f":"I7+I19","v":0},{"$f":"K22/$B$22","v":1},{"$f":"K7+K19","v":200125573.35500243},{"$f":"M22/$B$22","v":0},{"$f":"M7+M19","v":0}]
[null,null,null,null,null,null,null,null,null,null,null,null,{"$f":"IF(SUM(I22,K22,M22)<>E22,\"FEIL I SUMMERINGER\",\"\")","v":""}]
[]
["Henføring til EVU"]
[null,null,null,null,null,null,null,null,null,null,null,"Antall deltakere (unike)"]
[null,null,null,"EVU's andeler",null,null,null,"Antall emner",null,"Studiepoengproduksjon"]
[null,null,null,"EVU",null,null,null,null,{"$f":"'Input Grunndata'!C16","v":89},null,{"$f":"'Input Grunndata'!C15","v":461.5},null,1400]
[null,null,null,"UiA totalt (Inkl. EVU)",null,null,null,null,{"$f":"'Input Grunndata'!C11","v":1450},null,{"$f":"'Input Grunndata'!C10","v":8546},null,{"$f":"'Input Grunndata'!C6","v":12713}]
[null,null,null,"Prosentandel EVU",null,null,null,null,{"$f":"I28/I29","v":6.137931034482759E-2},null,{"$f":"K28/K29","v":5.4001872220922072E-2},null,{"$f":"M28/M29","v":0.11012349563439},null,null,null,null,null,"Beregning av fradrag ift. fin.sats",null,null,"Studievekt","Total"]
[null,null,null,"Kostnad henført til EVU",null,null,null,null,{"$f":"I30*I22","v":0},null,{"$f":"K$22*K30","v":10807155.640455607},null,{"$f":"M$22*M30","v":0},null,null,null,null,null,"Stykkpris resultatpoeng",null,{"$f":"'Input Grunndata'!C18","v":189},{"$f":"VLOOKUP('Budsjettmodell for EVU'!C20,StudieKat[],2,0)","v":1},{"$f":"U31*V31","v":189}]
[null,null,null,null,null,null,null,null,null,null,null,null,null,null,null,null,null,null,"Tildeling per VK poeng",null,{"$f":"'Input Grunndata'!C19","v":195.78},{"$f":"VLOOKUP('Budsjettmodell for EVU'!C20,StudieKat[],2,0)","v":1},{"$f":"U32*V32","v":195.78}]
[null,null,null,"Kostnad per driver",null,null,null,null,"Per emne","Per studiepoeng per deltaker",null,null,"Per deltaker",null,null,null,null,null,"Per studiepoeng",null,{"$f":"SUM(U31:U32)","v":384.78},{"$f":"VLOOKUP('Budsjettmodell for EVU'!C20,StudieKat[],2,0)","v":1},{"$f":"SUM(W31:W32)","v":384.78}]
[null,null,null,"Utgangspunkt",null,null,null,null,{"$f":"I31/I$28","v":0},null,{"$f":"K31/K$28/60","v":390.29092237109455},null,{"$f":"M31/M$28","v":0},null,null,null,null,null,"Per SPE (60 stp)",null,null,null,{"$f":"W33*60","v":23086.799999999999}]
[null,null,null,"Fradrag ift. UiAs finansieringssats (%)",null,null,null,null,0,null,0,null,{"$f":"AD35","v":0}]
[null,null,null,"Sum",null,null,null,null,{"$f":"I34-I35","v":0},null,{"$f":"K34-K35","v":390.29092237109455},null,{"$f":"M34-M35","v":0}]
[]
[]
[null,null,null,"Indirekte kostnad - Student - for gjeldende kurs",null,null,null,null,{"$f":"I34*$B$42","v":0},null,{"$f":"K36*$B$43*$B$44","v":97572.730592773631},null,{"$f":"(M34-$M$35)*$B$44","v":0}]
[]
["Info om gjeldende kurs",null,null,"Fordeling per driver"]
["Antall kurs (alltid 1)",1,null,"Kurs",{"$f":"I39","v":0},{"$f":"E42/$E$45","v":0}]
["Antall studiepoeng",{"$f":"Antall_stp","v":10},null,"Studiepoeng",{"$f":"K39","v":97572.730592773631},1]
["Antall deltakere",{"$f":"Antall_deltakere","v":25},null,"Deltakere",{"$f":"M39","v":0},0,null,null,"Total IK per student:",null,{"$f":"E45/B44","v":3902.9092237109453}]
[null,null,null,"Sum",{"$f":"SUM(E42:E44)","v":97572.730592773631},1]
[null,null,null,"Fakultetsadm.",{"$f":"E45*C7","v":29624.780378145217},{"$f":"E46/$E$45","v":0.30361741644585344}]
[null,null,null,"Sentraladm.",{"$f":"E45*C19","v":67947.950214628421},{"$f":"E47/$E$45","v":0.69638258355414662}]

{"sheet":"Input Grunndata","index":10,"n_rows":35,"n_cols":16,"rows_kept":35,"cut":false,"hidden":false,"merged":[]}
["Senest oppdatert ","Dato:",null,null,null,null,null,null,null,null,null,"SKJULES - UiA spesifikt"]
[null,"Hvem:",null,null,null,null,null,null,null,null,null,1,{"$f":"L2+1","v":2},3,4,5]
[]
["Grunndata","fra",null,null,"Kommentarer"]
["Antall studenter - heltid (Inkludert EVU)",2016,11290,null,"Brukes ikke - kan være 0, DBH"]
["Totalt antall studenter",2016,12713,null,"DBH (OBS!  Denne malen krever at C6 minst må være 1)"]
["Timer per Årsverk lav (brukes på prosjektadm) sats",null,1628,null,"UiA hør med EVU ift timeføring.","UiA kan bruke 1 628 hvis de ikke fører timer når de er syke"]
["Timer per Årsverk høy sats",null,1628,null,"UiA bruker kun 1 628. Ikke 1 687,5"]
["Utdanningsårsverk",2016,371.6,null,"TDI: Input IK fordelt Forskn & Utdan, celle S8"]
["Totalt antall 60 SPE (Studiepoengproduksjon fra DBH)",2016,8546,null,"DBH (= TDI: Input DBH, celle AI11)"]
["Antall emner",2014,1450,null,"Brukes ikke, men må minst være 1:  UiA - hentet fra FS. Inkluderer EVU (1453, avrundet til 1450)"]
["EVU-data"]
["Antall deltakere EVU",2015,1400,null,"Brukes ikke - kan være 0: UiA - duplikater er tatt vekk (opprinnelig/brutto 2075)"]
["Antall studenter eksternfinansiert",2016,1291,null,"Brukes ikke - kan være 0: fra DBH, men ikke nødvendigvis et godt tall på EVU studenter, men kan gi en pekepinne."]
["Studiepoengproduksjon, EVU",2016,461.5,null,"UiA:  DBH; Studiepoengproduksjon fordelt på studieprogram som emnet tilhører. EVU er definer som alle program som er eksternfinansierte dvs. har programkode FB, FN, HV eller V i FS."]
["Antall studieprogram og emner",2014,89,null,"Brukes ikke, men må minst være 1:  UiA:  FS, Ingvild Mulen hentet ut 17.02.2016",null,null,null,null,null,null,null,"Studiekategori","Vekting"]
["Annet",null,null,null,null,null,"SKJULES - UiA internt",null,null,null,null,null,"T1",1]
["Stykkpris resultatpoeng",2016,189,null,"UiA internt, hentet fra tabellverket 2016",null,"SKJULES - UiA internt",null,null,null,null,null,"S1",1.25]
["Tildeling per VK-poeng",2016,195.78,null,"UiA internt, hentet fra tabellverket 2016",null,"SKJULES - UiA internt",null,null,null,null,null,"S2",1.65]
[null,null,null,null,null,null,null,null,null,null,null,null,"P1",1.35]
[null,null,null,null,null,null,null,null,null,null,null,null,"SP1",1.45]
[null,null,null,null,null,null,null,null,null,null,null,null,"SP2",1.9]
[null,null,null,null,null,null,null,null,null,null,null,null,"U1",4]
[null,null,null,null,null,null,null,null,null,null,null,null,"Hentet fra tabellverket 2016, emneporteføljen"]
["SKJULES - UiA spesifikt",null,null,1]
["Plusser på utdanningsårsverk som er trukket ut i TDI","(Se arket \"Gjenstår\" for data)",null,{"$f":"D25+1","v":2}]
["Dette gjelder ressurser til EVU, (Som kom under BOA del i TDI).",null,null,3]
["HUMPED",0,null,4]
["HH",0,null,5]
["SV",0,null,6]
["TEKREAL",0,null,7]
["HI",0,null,8]
["KUNST",0,null,9]
["SUM",{"$f":"SUM(B28:B33)","v":0},null,10]
["SKJULES - UiA spesifikt",null,null,11]

{"sheet":"Beregnet IK tabell","index":11,"n_rows":9,"n_cols":6,"rows_kept":9,"cut":false,"hidden":false,"merged":[]}
["Matrise for Indirekte Kostnader - per time"]
["Vit eller T/A","E/I","Felles","Fakultet","Arbeidsplass","Sum"]
["T/A","I",0,0,{"$f":"'IK Ansatt'!H41","v":93.40621333864577},{"$f":"SUM(C3:E3)","v":93.40621333864577}]
["T/A","E",0,0,0,{"$f":"SUM(C4:E4)","v":0}]
["VIT","I",{"$f":"'IK Ansatt'!H40","v":84.679130701148182},{"$f":"'IK Ansatt'!H39","v":46.682746700403193},{"$f":"'IK Ansatt'!H41","v":93.40621333864577},{"$f":"SUM(C5:E5)","v":224.76809074019712}]
["VIT","E",{"$f":"'IK Ansatt'!K40","v":0},{"$f":"'IK Ansatt'!K39","v":0},{"$f":"'IK Ansatt'!K41","v":0},{"$f":"SUM(C6:E6)","v":0}]
[]
[]
["Kun beregninger - \"bare se men ikke røre\" :-)"]

{"sheet":"Input UH finansieringssats","index":12,"n_rows":25,"n_cols":6,"rows_kept":25,"cut":false,"hidden":false,"merged":[]}
[null,0.4]
["Kategori","RBF","Basis","Totalt",null,"Erstatt neste år ved nyttår"]
["A",153000,230000,{"$f":"Tabell7[[#This Row],[RBF]]+Tabell7[[#This Row],[Basis]]","v":383000}]
["B",115000,173000,{"$f":"Tabell7[[#This Row],[RBF]]+Tabell7[[#This Row],[Basis]]","v":288000}]
["C",79000,118000,{"$f":"Tabell7[[#This Row],[RBF]]+Tabell7[[#This Row],[Basis]]","v":197000}]
["D",55000,83000,{"$f":"Tabell7[[#This Row],[RBF]]+Tabell7[[#This Row],[Basis]]","v":138000}]
["E",47000,71000,{"$f":"Tabell7[[#This Row],[RBF]]+Tabell7[[#This Row],[Basis]]","v":118000}]
["F",39000,59000,{"$f":"Tabell7[[#This Row],[RBF]]+Tabell7[[#This Row],[Basis]]","v":98000}]
["*tall 2017",null,null,{"$f":"Tabell7[[#This Row],[RBF]]+Tabell7[[#This Row],[Basis]]","v":0}]
[]
["Beregning av finansierings% i FS for studier som starter fom. 2008"]
["Fyll ut de hvite cellene."]
[]
["Kategori:",{"$f":"'Budsjettmodell for EVU'!$C$21","v":"F"}]
[]
["Studentbetaling:",{"$f":"'Budsjettmodell for EVU'!$C$12","v":13000},"pr. stk."]
["Betalt av andre:",{"$f":"'Budsjettmodell for EVU'!R30-'Budsjettmodell for EVU'!R24-'Budsjettmodell for EVU'!R27","v":0},"totalt"]
[]
["Antall studenter:",{"$f":"'Budsjettmodell for EVU'!$C$11","v":25}]
["Antall studiepoeng:",{"$f":"'Budsjettmodell for EVU'!$C$19","v":10}]
[]
["Sum i kategorien",{"$f":"SUMIF(A3:A9,B14,D3:D9)","v":98000},"herav RBF",{"$f":"SUMIF(A3:A9,B14,B3:B9)","v":39000},"dette inngår nederst i \"Kalkulasjonsmal\" (rad 103)"]
["Studentfinansiert:",{"$f":"IF(B14=0,\"legg inn kategori\",IF(B20=0,\"legg inn studiepoeng\",(B16+IF(B17=0,0,B17/B19))/B20*60/B22))","v":0.79591836734693877},null,{"$f":"((B22/60)*B20-B16)*B19-B17","v":83333.333333333299},{"$f":"IF('Budsjettmodell for EVU'!H21>0.0001,\"Resterende finansiering\")","v":"Resterende finansiering"}]
[]
["UiA - finansiert (hvis reg. i FS):",{"$f":"IF(B23>100%,0,IF(B23=\"legg inn kategori\",\"Legg inn kategori\",IF(B23=\"legg inn studiepoeng\",\"Legg inn studiepoeng\",1-B23)))","v":0.20408163265306123},null,null,"(Dette tallet legges inn som finansierings% i FS)"]

{"sheet":"Input A-tabellen","index":13,"n_rows":97,"n_cols":14,"rows_kept":97,"cut":false,"hidden":false,"merged":[[1,0,1,7],[1,9,1,13]]}
["DET KGL. KOMMUNAL- OG MODERNISERINGSDEPARTEMENT"]
["Hovedlønnstabell for arbeidstakere i staten gjeldende fra 1.mai 2017",null,null,null,null,null,null,null,null,"Tabell A - HOVEDLØNNSTABELL"]
[]
["Kolonne1","Kolonne2","Kolonne3","Kolonne4","Kolonne5","Kolonne6","Kolonne7","Kolonne8","Kolonne9","Kolonne10","Kolonne11","Kolonne12","Kolonne13","Kolonne14"]
[null,1,2,3,4,5,6,7,8,9,null,10,11,12]
["Lønns-trinn","  Brutto-","       Bruttolønn - OU 2)",null,null,"  Pensjonsinnskudd 3)",null,"Nettolønn",null,null,"Lønns-trinn","   Overtids-",null,"  45% natt-tidskompensasjon 5)"]
[null,"   lønn 1)",null,null,null,null,null,null,null,null,null,"  godtgjørelse 4)"]
[null,"  Pr. år","   Pr. år","   Pr. mnd.","  Pr. dag","  Pr. år"," Pr. mnd","  Pr. år"," Pr. mnd"," Pr. dag",null,"   50 %","   100 %"]
[19,291200,{"$f":"B9-400","v":290800},"Harry:  Lagt inn Kolonne C = (Kolonne B - 300) Sjekk at dette ble riktig:"]
[20,294700,294300]
[21,298400,298000]
[22,302000,301600]
[23,305800,305400]
[24,309700,309300]
[25,313800,313400]
[26,317900,317500]
[27,321800,321400]
[28,325700,325300]
[29,329400,329000]
[30,333300,332900]
[31,336900,336500]
[32,340900,340500]
[33,344700,344300]
[34,348800,348400]
[35,352900,352500]
[36,357100,356700]
[37,361700,361300]
[38,366400,366000]
[39,371000,370600]
[40,376000,375600]
[41,381000,380600]
[42,386700,386300]
[43,392100,391700]
[44,398100,397700]
[45,404000,403600]
[46,410000,409600]
[47,416600,416200]
[48,423200,422800]
[49,430100,429700]
[50,436900,436500]
[51,443900,{"$f":"B41-400","v":443500}]
[52,451300,450900]
[53,459100,458700]
[54,466500,466100]
[55,474700,474300]
[56,482500,482100]
[57,490900,490500]
[58,499600,499200]
[59,508800,508400]
[60,517700,517300]
[61,527500,527100]
[62,537700,537300]
[63,548200,547800]
[64,558500,558100]
[65,569000,568600]
[66,579300,578900]
[67,590000,589600]
[68,600200,599800]
[69,611700,611300]
[70,623900,623500]
[71,638700,638300]
[72,650200,649800]
[73,661700,661300]
[74,673800,673400]
[75,686900,686500]
[76,704800,704400]
[77,722400,722000]
[78,745600,745200]
[79,769100,768700]
[80,792700,792300]
[81,815800,815400]
[82,838300,837900]
[83,860500,{"$f":"B73-400","v":860100}]
[84,882900,882500]
[85,910900,910500]
[86,938700,938300]
[87,966900,966500]
[88,989000,988600]
[89,1011400,1011000]
[90,1033700,1033300]
[91,1056300,1055900]
[92,1078400,1078000]
[93,1100800,1100400]
[94,1123100,1122700]
[95,1145600,1145200]
[96,1167400,1167000]
[97,1189300,1188900]
[98,1211300,1210900]
[99,1232300,1231900]
[100,1253100,1252700]
[101,1274100,1273700]
[]
["1) Bruttolønn inklusiv avgift på kr 300,- pr år til OU-midler"]
["2) Bruttolønn eksklusiv avgift på kr 300,- pr år til OU-midler"]
["3) Folketrygdens grunnbeløp  pr 1. mai 2015 fastsettes i slutten av mai 2015."]
["4) Jf fellesbestemmelsens § 2 nr 3"]
["5) Jf fellesbestemmelsens § 15 nr 1"]

{"sheet":"Input C-tabellen","index":14,"n_rows":87,"n_cols":6,"rows_kept":87,"cut":false,"hidden":false,"merged":[[0,5,2,5]]}
["Ltr.","C-tabellen","Kolonne1",null,null,"Timelønn     35,5 time pr uke           1850 timer"]
[null,"Brutto"]
[null,"37,5 t/uke (per 01.05.17)"]
["1-18",1,null,null,"Harry:  Alternativt, IKKE benyttet"]
[19,149.1,"Harry:  Sjekk at dette er riktig: \"Timelønn 37,5 time pr uke 1950 timer\"",null,null,157.19999999999999]
[20,150.9,null,null,null,159.1]
[21,152.80000000000001,null,null,null,161.1]
[22,154.69999999999999,null,null,null,163]
[23,156.6,null,null,null,165.1]
[24,158.6,null,null,null,167.2]
[25,160.69999999999999,null,null,null,169.4]
[26,162.80000000000001,null,null,null,171.6]
[27,164.8,null,null,null,173.7]
[28,166.8,null,null,null,175.8]
[29,168.7,null,null,null,177.8]
[30,170.7,null,null,null,179.9]
[31,172.6,null,null,null,181.9]
[32,174.6,null,null,null,184.1]
[33,176.6,null,null,null,186.1]
[34,178.7,null,null,null,188.3]
[35,180.8,null,null,null,190.5]
[36,182.9,null,null,null,192.8]
[37,185.3,null,null,null,195.3]
[38,187.7,null,null,null,197.8]
[39,190.1,null,null,null,200.3]
[40,192.6,null,null,null,203]
[41,195.2,null,null,null,205.7]
[42,198.1,null,null,null,208.8]
[43,200.9,null,null,null,211.7]
[44,203.9,null,null,null,215]
[45,207,null,null,null,218.2]
[46,210.1,null,null,null,221.4]
[47,213.4,null,null,null,225]
[48,216.8,null,null,null,228.5]
[49,220.4,null,null,null,232.3]
[50,223.8,null,null,null,235.9]
[51,227.4,null,null,null,239.7]
[52,231.2,null,null,null,243.7]
[53,235.2,null,null,null,247.9]
[54,239,null,null,null,251.9]
[55,243.2,null,null,null,256.39999999999998]
[56,247.2,null,null,null,260.60000000000002]
[57,251.5,null,null,null,265.10000000000002]
[58,256,null,null,null,269.8]
[59,260.7,null,null,null,274.8]
[60,265.3,null,null,null,279.60000000000002]
[61,270.3,null,null,null,284.89999999999998]
[62,275.5,null,null,null,290.39999999999998]
[63,280.89999999999998,null,null,null,296.10000000000002]
[64,286.2,null,null,null,301.7]
[65,291.60000000000002,null,null,null,307.39999999999998]
[66,296.89999999999998,null,null,null,312.89999999999998]
[67,302.39999999999998,null,null,null,318.7]
[68,307.60000000000002,null,null,null,324.2]
[69,313.5,null,null,null,330.4]
[70,319.7,null,null,null,337]
[71,327.3,null,null,null,345]
[72,333.2,null,null,null,351.2]
[73,339.1,null,null,null,357.5]
[74,345.3,null,null,null,364]
[75,352.1,null,null,null,371.1]
[76,361.2,null,null,null,380.8]
[77,370.3,null,null,null,390.3]
[78,382.2,null,null,null,402.8]
[79,394.2,null,null,null,415.5]
[80,406.3,null,null,null,428.3]
[81,418.2,null,null,null,440.8]
[82,429.7,null,null,null,452.9]
[83,441.1,null,null,null,464.9]
[84,452.6,null,null,null,477]
[85,466.9,null,null,null,492.2]
[86,481.2,null,null,null,507.2]
[87,495.6,null,null,null,522.4]
[88,507,null,null,null,534.4]
[89,518.5,null,null,null,546.5]
[90,529.9,null,null,null,558.5]
[91,541.5,null,null,null,570.79999999999995]
[92,552.79999999999995,null,null,null,582.70000000000005]
[93,564.29999999999995,null,null,null,594.79999999999995]
[94,575.70000000000005,null,null,null,606.9]
[95,587.29999999999995,null,null,null,619]
[96,598.5,null,null,null,630.79999999999995]
[97,609.70000000000005,null,null,null,642.6]
[98,621,null,null,null,654.5]
[99,631.70000000000005,null,null,null,665.9]
[100,642.4,null,null,null,677.1]
[101,653.20000000000005,null,null,null,688.5]

{"sheet":"INFO KD's finansieringskategori","index":15,"n_rows":42,"n_cols":2,"rows_kept":42,"cut":false,"hidden":true,"merged":[]}
[]
[null,"Oversikten nedenfor angir nærmere hvordan ulike studier er fordelt på kategorier (Hentet fra Blå Bok for 2016)"]
[]
[null,"(Fra rapporteringsåret 2010 skal studiepoeng avlagt på videreutdanninger rapporteres i samme kategori som tilsvarende grunnutdanning)"]
[]
[]
[null,"Kategori A"]
[null,"Profesjonsstudiene i medisin og odontologi, veterinærutdanning, kunstakademiet (NTNU),"]
[null,"film- og fjernsynsutdanning (HiL) og scenografi og skuespill (HiØ)."]
[]
[null,"Kategori B"]
[null,"5-årige masterprogram i arkitektur og industridesign, utøvende kunst- og"]
[null,"musikkutdanninger på lavere og høyere grad, grunnutdanning i produktdesign,"]
[null,"grunnutdanning i animasjon, profesjonsstudiene i psykologi og farmasi, samt"]
[null,"grunnutdanning i ortopediingeniør."]
[]
[null,"Kategori C"]
[null,"Realfag, teknologi, fiskerifag og kunst på høyere grads nivå, faglærerutdanning i"]
[null,"musikk, dans og drama."]
[]
[null,"Kategori D"]
[null,"Humanistiske, samfunns- og idrettsvitenskapelige fag på høyere grads nivå, 5-årige"]
[null,"masterprogram i teknologi, bibliotek samt økonomi og administrasjon på høyere grads"]
[null,"nivå. Grunnutdanning i fysioterapi, mensendieck, bioingeniør, ergoterapi, radiografi,"]
[null,"audiografi, døvetolk, reseptar, tannteknikk, tannpleie, fotojournalist, jordmor,"]
[null,"stråleterapi, ABIOK-utdanninger (videreutdanning i anestesi-, barne-, intensiv-,"]
[null,"operasjons- og kreftsykepleie). Visuell kommunikasjon, tekniske mediefag (film- og"]
[null,"fjernsynsproduksjon), grunnskolelærerutdanning, faglærerutdanning i kunst- og"]
[null,"håndtverksfag, allmennlærerutdanning med fordyping i musikk, 5-årig integrert lærerutdanning, samt årsstudium i"]
[null,"praktisk pedagogisk utdanning."]
[]
[null,"Kategori E"]
[null,"Sykepleier-, vernepleier-, barnevernspedagog-, allmennlærer-, førskolelærer-, yrkesfaglærer, journalist-,"]
[null,"ingeniør- og dyrepleierutdanning. Profesjonsstudiet i juss, faglærerutdanning i praktisk"]
[null,"estetiske fag, faglærerutdanning i kroppsøving. Teknologisk og maritim utdanning,"]
[null,"realfag, idrettsfag, friluftsfag, kunstfag, landbruksfag, skogfag, husdyrfag og fiskerifag på lavere grads nivå. Videreutdanning i"]
[null,"helsesøster, psykisk helse og tegnspråk."]
[]
[null,"Kategori F"]
[null,"Humanistiske og samfunnsvitenskapelige fag på lavere grads nivå, økonomi og"]
[null,"administrasjon på lavere grads nivå, revisor-, sosionom- og"]
[null,"bibliotekarutdanning, samt reiseliv og ex. phil."]